[Event "MCCT Oslo Esports Cup 2022"]
[Site "Oslo"]
[Date "2022.04.20"]
[Round "1.3"]
[White "Giri, Anish"]
[Black "Hansen, Eric"]
[Result "1-0"]
[ECO "C88"]
[WhiteElo "2773"]
[BlackElo "2606"]
[Annotator "TA"]
[PlyCount "105"]
[EventDate "2022.04.14"]
[EventType "tourn"]
[EventCountry "NOR"]
[SourceTitle "playchess.com"]
[Source "ChessBase"]
[SourceQuality "1"]
[TimeControl "1500+10"]

{[%evp 18,104,33,27,31,25,25,20,37,25,24,26,26,9,12,0,0,-7,7,8,21,20,22,13,18,24,15,18,24,23,27,0,27,0,20,20,12,0,22,0,0,0,27,0,0,-5,48,0,0,0,0,0,0,0,0,-26,0,0,0,-31,-21,-12,-12,-12,-9,-12,-13,-35,-14,-31,-21,-20,-20,-56,-26,-36,-21,-176,-192,-185,-102,-125,-127,-125,343,327,29990,29991,29999]} 1. e4 {[%emt 0:10:00]} e5 {[%emt 0:10:00]} 2. Nf3 {[%emt 0:00:02]} Nc6 {[%emt 0:00:02]} 3. Bb5 {[%emt 0:00:01][%cal Bf1b5,Bb5a4,Ba4b3][%mdl 32]} a6 {[%emt 0:00:38]} 4. Ba4 {[%emt 0:00:01]} Nf6 {[%emt 0:00:01]} 5. O-O {[%emt 0:00:01]} Be7 {[%emt 0:00:01]} 6. Re1 {[%emt 0:00:03]} b5 {[%emt 0:00:08]} 7. Bb3 {[%emt 0:00:01]} O-O {[%emt 0:00:00]} 8. a4 {[%emt 0:00:01]} Bb7 {[%emt 0:00:10]} 9. d3 {[%emt 0:00:02]} d6 {[%emt 0:02:59]} 10. Nbd2 {[%emt 0:00:10]} Nb8 {[%emt 0:00:16][%cal Bc6b8,Bb8d7,Bd7c5][%mdl 32] 10...Nd7 is a critical line. C88: Closed Ruy Lopez: Anti-Marshall Systems.} 11. axb5 {[%emt 0:00:13]} axb5 {[%emt 0:00:01]} 12. Rxa8 {[%emt 0:00:00]} Bxa8 {[%emt 0:00:00] The position is equal.} 13. Nf1 {[%emt 0:00:03]} Nbd7 {[%emt 0:00:11]} 14. Ng3 {[%emt 0:00:08]} Re8 {[%emt 0:03:25] [#]} 15. Bd2 $146 {[%emt 0:04:32]} ({Predecessor:} 15. Nf5 Nc5 16. Nxe7+ Qxe7 17. Ba2 Bb7 18. Ng5 Rf8 19. b4 Na4 20. Bd2 Bc8 21. c4 {½-½ (48) Stefansson,H (2561)-Plachetka,J (2441) Cappelle la Grande 2005}) 15... Bf8 {[%emt 0:00:11]} 16. h3 {[%emt 0:01:40]} h6 {[%emt 0:00:46]} 17. Qe2 {[%emt 0:00:38]} Nc5 {[%emt 0:01:49]} 18. Ba2 {[%emt 0:00:01]} Qd7 {[%emt 0:00:32]} 19. b4 {[%emt 0:00:41]} Ne6 {[%emt 0:00:14]} 20. Nf5 {[%emt 0:00:02]} Kh7 {[%emt 0:00:44]} 21. Qd1 {[%emt 0:01:42]} g6 {[%emt 0:00:40]} 22. Ng3 {[%emt 0:00:01]} Bg7 {[%emt 0:00:10]} 23. Be3 {[%emt 0:00:09]} Qe7 {[%emt 0:01:13]} 24. Bd2 {[%emt 0:00:46]} Bb7 {[%emt 0:00:17]} 25. Bb3 {[%emt 0:00:01]} Ra8 {[%emt 0:00:05]} 26. Qb1 {[%emt 0:00:17]} Nd7 {[%emt 0:01:12]} 27. h4 {[%emt 0:00:29][%cal Bh3h4,Bh4h5][%mdl 32]} Nf6 {[%emt 0:00:09]} 28. Qd1 {[%emt 0:00:13]} Ng4 {[%emt 0:01:15]} 29. h5 {[%emt 0:00:24][%cal Of3g5]} Nf4 {[%emt 0:00:16]} 30. Bxf4 {[%emt 0:02:02]} exf4 {[%emt 0:00:01]} 31. Ne2 {[%emt 0:00:00]} Qf6 {[%emt 0:01:06]} ({Don't play} 31... gxh5 32. Qd2 $14) (31... g5 $11) 32. Qd2 {[%emt 0:00:31]} (32. Ned4 $14) 32... g5 $11 {[%emt 0:00:01]} 33. Ned4 {[%emt 0:00:29]} Ne5 {[%emt 0:00:28]} 34. Nxe5 {[%emt 0:00:24]} Qxe5 {[%emt 0:00:04]} 35. c3 {[%emt 0:00:39]} Kg8 {[%emt 0:00:10]} 36. Rc1 {[%emt 0:00:16]} Bc8 {[%emt 0:00:56][%cal Bb7c8,Bc8d7,Bd7e8][%mdl 32]} 37. Bd5 {[%emt 0:00:18]} Ra6 {[%emt 0:00:01]} 38. f3 {[%emt 0:02:23]} (38. Bc6 $5 {[%cal Rc6b5]}) 38... Bd7 {[%emt 0:00:02]} 39. Ne2 {[%emt 0:00:07]} c6 {[%emt 0:00:24]} 40. Bb3 {[%emt 0:00:06]} Qe8 {[%emt 0:00:05]} 41. d4 {[%emt 0:00:09]} Qa8 {[%emt 0:00:04]} 42. Qd1 {[%emt 0:00:20]} Qa7 {[%emt 0:00:01]} 43. Kh1 {[%emt 0:00:13]} Be8 {[%emt 0:00:03]} 44. g3 {[%emt 0:00:06]} fxg3 {[%emt 0:00:06]} 45. Nxg3 {[%emt 0:00:00]} Bd7 {[%emt 0:00:01]} 46. Kg2 {[%emt 0:00:05]} Ra3 {[%emt 0:00:04]} 47. Nf5 $2 {[%emt 0:00:18]} (47. Rb1 $11 {and White is okay.}) 47... Bxf5 $19 {[%emt 0:00:08]} 48. exf5 {[%emt 0:00:00]} d5 {[%emt 0:00:06]} ({Better is} 48... Qe7 $1 $19 {Hoping for ...d5.} 49. Rb1 Qe3) 49. Rb1 {[%emt 0:00:02]} Bf8 {[%emt 0:00:10]} 50. f6 {[%emt 0:00:13]} Qc7 $2 {[%emt 0:01:19][%mdl 8192] [#]} (50... Bd6 $17 {keeps the pressure on. Strongly threatening ...Qa8.} 51. Rb2 Qd7) 51. Qd3 $1 $18 {[%emt 0:00:12] Threatening mate with Bc2.} Qf4 $2 {[%emt 0:00:09] [#]} (51... Rxb3 $18 52. Rxb3 Qd8) 52. Bc2 $1 {[%emt 0:00:04][%csl Gc2][%cal Rd3h7]} Ra2 {[%emt 0:00:01]} 53. Qh7# {[%emt 0:00:02] Weighted Error Value: White=0.14 (very precise) /Black=0.41} 1-0

[Event "MCCT Oslo Esports Cup 2022"]
[Site "Oslo"]
[Date "2022.04.20"]
[Round "1.3"]
[White "Mamedyarov, Shakhriyar"]
[Black "Le, Quang Liem"]
[Result "1/2-1/2"]
[ECO "D24"]
[WhiteElo "2771"]
[BlackElo "2709"]
[Annotator "TA"]
[PlyCount "126"]
[EventDate "2022.04.14"]
[EventType "tourn"]
[EventCountry "NOR"]
[SourceTitle "playchess.com"]
[Source "ChessBase"]
[SourceQuality "1"]
[TimeControl "1500+10"]

{[%evp 9,126,22,24,0,6,23,0,0,0,2,9,18,5,6,21,6,25,35,39,14,10,1,41,52,68,58,56,60,64,63,65,68,87,93,83,83,75,66,85,79,112,112,115,115,112,112,162,143,153,161,167,161,182,164,156,156,164,114,121,121,108,112,112,109,110,68,71,83,80,56,61,62,102,45,45,14,16,16,48,11,11,11,11,11,11,11,11,11,11,7,11,0,0,0,0,0,0,0,0,0,0,0,0,0,0,0,0,0,0,0,0,0,0,0,0,0,0,0,0]} 1. d4 {[%emt 0:10:00]} Nf6 {[%emt 0:10:00]} 2. c4 {[%emt 0:00:02]} e6 {[%emt 0:00:01]} 3. Nf3 {[%emt 0:00:01]} d5 {[%emt 0:00:01]} 4. Nc3 {[%emt 0:00:00]} dxc4 {[%emt 0:00:07]} 5. e4 {[%emt 0:00:02]} Bb4 {[%emt 0:00:01]} 6. Bxc4 {[%emt 0:00:01] Black should prevent 0-0. D24: Queen's Gambit Accepted: 3 Nf3 Nf6 4 Nc3.} Nxe4 {[%emt 0:00:01]} 7. O-O {[%emt 0:00:02]} Nxc3 {[%emt 0:00:01]} 8. bxc3 {[%emt 0:00:00]} ({Much worse is} 8. Qb3 Nd5 9. Bxd5 Qxd5 $17) 8... Be7 {[%emt 0:00:01]} 9. Ne5 {[%emt 0:00:04]} O-O {[%emt 0:00:01]} 10. Re1 {[%emt 0:00:05]} Nc6 {[%emt 0:00:01]} 11. Qg4 {[%emt 0:00:07]} f5 {[%emt 0:00:03]} 12. Qf3 {[%emt 0:00:01]} Nxe5 {[%emt 0:00:01]} 13. Rxe5 {[%emt 0:00:00]} Kh8 {[%emt 0:00:02]} 14. h3 {[%emt 0:00:23]} Bd6 {[%emt 0:00:12]} 15. Re2 {[%emt 0:00:01] [#]} Rb8 $146 {[%emt 0:00:39]} ({Predecessor:} 15... h6 16. Bd2 Qe7 17. Rae1 Rf6 18. Bb3 a5 19. c4 a4 20. Bc2 Bb4 21. Bc3 Bxc3 22. Qxc3 {½-½ (43) Anand,V (2793)-Giri,A (2768) London 2014}) 16. Bf4 {[%emt 0:00:36]} Bxf4 {[%emt 0:00:26]} 17. Qxf4 {[%emt 0:00:00]} Qd6 {[%emt 0:00:07]} 18. Qxd6 {[%emt 0:00:37]} cxd6 {[%emt 0:00:00]} 19. Bxe6 {[%emt 0:00:01]} Bxe6 {[%emt 0:00:27]} 20. Rxe6 $14 {[%emt 0:00:00][%mdl 4096] Endgame KRR-KRR} Rfc8 {[%emt 0:00:01]} 21. Rae1 {[%emt 0:00:13]} h6 {[%emt 0:00:06]} 22. R1e3 {[%emt 0:00:58]} Rc6 {[%emt 0:00:41]} 23. Re7 {[%emt 0:00:07]} f4 {[%emt 0:05:14] Prevents Rg3.} 24. Rf3 {[%emt 0:00:19]} a5 {[%emt 0:00:06]} 25. Rxf4 {[%emt 0:01:47]} Rxc3 {[%emt 0:00:03]} 26. Rff7 {[%emt 0:00:02][%csl LRb7,LRg7]} Rg8 {[%emt 0:00:04]} 27. Rxb7 {[%emt 0:00:02]} Rc1+ {[%emt 0:00:54]} 28. Kh2 {[%emt 0:00:03]} Rc2 {[%emt 0:00:00]} 29. a3 {[%emt 0:00:09]} Rc3 {[%emt 0:01:37]} 30. Rbd7 {[%emt 0:00:49]} Rxa3 {[%emt 0:00:09]} 31. Rxd6 {[%emt 0:00:01]} a4 {[%emt 0:00:02]} 32. Ra6 {[%emt 0:01:08] &Bianco is more active.} Ra2 {[%emt 0:00:11]} 33. Rf3 {[%emt 0:01:21] Prevents a3.} (33. f4 $18) 33... Rd8 {[%emt 0:00:12] [#]} 34. Ra7 $1 {[%emt 0:00:04]} a3 {[%emt 0:00:24]} ({Weaker is} 34... Rxd4 35. Rf8+ Kh7 36. Rff7) 35. Rg3 {[%emt 0:01:02]} Rg8 {[%emt 0:01:16]} 36. Rgxa3 {[%emt 0:01:18]} Rxf2 {[%emt 0:00:17]} 37. Ra2 {[%emt 0:00:12]} Rf4 {[%emt 0:01:42]} 38. Rd7 {[%emt 0:00:06]} Kh7 {[%emt 0:00:14]} 39. Rd2 {[%emt 0:00:14]} Ra8 {[%emt 0:01:01]} 40. Rd3 {[%emt 0:00:37]} Ra6 {[%emt 0:00:08] [#]} 41. Rg3 {[%emt 0:01:02]} ({White should play} 41. d5 $1 $16) 41... Rg6 {[%emt 0:00:04]} 42. Rxg6 {[%emt 0:00:35]} Kxg6 {[%emt 0:00:00] KR-KR} 43. Kg3 {[%emt 0:00:01]} Rf1 {[%emt 0:00:13]} 44. Re7 {[%emt 0:00:18]} Rd1 {[%emt 0:00:47] The position is equal.} 45. Re4 {[%emt 0:00:03]} Kf5 {[%emt 0:00:24]} 46. Rf4+ {[%emt 0:00:03]} Ke6 {[%emt 0:00:01]} 47. Kf3 {[%emt 0:00:29]} g5 {[%emt 0:00:22] [#] ( -> ...Rf1+)} 48. Ke2 {[%emt 0:01:36] Prevents Rf1.} Ra1 {[%emt 0:02:56]} (48... Rc1 49. Rf8) 49. Rf2 {[%emt 0:02:45]} Kd5 {[%emt 0:00:15]} 50. Kf3 {[%emt 0:00:01]} h5 {[%emt 0:00:09]} 51. Kg3 {[%emt 0:01:18] Black must now prevent Rf5+.} Ra3+ {[%emt 0:01:06]} 52. Rf3 {[%emt 0:00:01]} Rxf3+ {[%emt 0:00:06]} 53. gxf3 {[%emt 0:00:11] White threatens h4 and mate.} Kxd4 $11 {[%emt 0:00:00] KPP-KPP} 54. f4 {[%emt 0:00:06]} h4+ {[%emt 0:00:06]} 55. Kg4 {[%emt 0:00:04] White wants to mate with f5.} gxf4 {[%emt 0:00:00]} 56. Kxf4 {[%emt 0:00:00] KP-KP} Kd5 {[%emt 0:00:01]} 57. Kg4 {[%emt 0:00:01]} Ke6 {[%emt 0:00:01]} 58. Kxh4 {[%emt 0:00:01] KP-K} Kf7 {[%emt 0:00:00]} 59. Kg4 {[%emt 0:00:01]} Kg8 {[%emt 0:00:00]} 60. h4 {[%emt 0:00:00]} Kh8 {[%emt 0:00:00]} 61. h5 {[%emt 0:00:00]} Kg8 {[%emt 0:00:00]} 62. h6 {[%emt 0:00:00]} Kh8 {[%emt 0:00:00]} 63. h7 {[%emt 0:00:00]} Kxh7 {[%emt 0:00:01] Blacks defense is rewarded with a draw.  Weighted Error Value: White=0.07 (flawless) /Black=0.06 (flawless)} 1/2-1/2

[Event "MCCT Oslo Esports Cup 2022"]
[Site "Oslo"]
[Date "2022.04.20"]
[Round "1.3"]
[White "Duda, Jan-Krzysztof"]
[Black "Carlsen, Magnus"]
[Result "0-1"]
[ECO "B11"]
[WhiteElo "2750"]
[BlackElo "2864"]
[Annotator "TA"]
[PlyCount "112"]
[EventDate "2022.04.14"]
[EventType "tourn"]
[EventCountry "NOR"]
[SourceTitle "playchess.com"]
[Source "ChessBase"]
[SourceQuality "1"]
[TimeControl "1500+10"]

{[%evp 11,112,0,13,15,39,34,37,34,31,25,29,31,38,25,28,22,31,0,0,0,8,-6,-7,-7,-11,-8,-8,-32,-18,-22,-29,-22,-10,-6,-16,-18,0,-4,0,0,0,0,6,14,8,15,36,27,36,0,0,0,0,-4,-4,-4,-5,-5,-5,-16,-10,-71,-71,-71,-71,-187,-180,-168,-185,-301,-269,-346,-321,-281,-193,-205,-158,-214,-301,-275,-275,-287,-319,-670,-599,-668,-659,-696,-377,-899,-850,-785,-513,-29980,-29981,-29981,-29982,-29982,-29983,-29983,-29983,-29986,-29987]} 1. e4 {[%emt 0:10:00]} c6 {[%emt 0:10:00]} 2. Nf3 {[%emt 0:00:19]} d5 {[%emt 0:00:03]} 3. Nc3 {[%emt 0:00:01]} Bg4 {[%emt 0:00:24]} 4. h3 {[%emt 0:00:14]} Bxf3 {[%emt 0:00:02]} 5. Qxf3 {[%emt 0:00:00]} e6 {[%emt 0:00:01]} 6. g3 {[%emt 0:00:14]} Nf6 {[%emt 0:00:05]} 7. Bg2 {[%emt 0:00:02] B11: Caro-Kann: Two Knights Variation.} Nxe4 {[%emt 0:00:02] 7...Bb4 is setting a new trend.} 8. Nxe4 {[%emt 0:00:04]} dxe4 {[%emt 0:00:00]} 9. Qxe4 {[%emt 0:01:21] White is slightly better.} Qd5 {[%emt 0:00:02]} 10. O-O {[%emt 0:00:12]} Qxe4 {[%emt 0:00:02]} 11. Bxe4 {[%emt 0:00:00]} Nd7 {[%emt 0:00:05]} 12. d3 {[%emt 0:00:26] [#]} a5 $146 {[%emt 0:00:06]} ({Predecessor:} 12... O-O-O 13. Bg2 {½-½ (13) Rozentalis,E (2535)-Turov,M (2575) Hell 2019}) 13. Bg2 {[%emt 0:00:30]} Bd6 {[%emt 0:00:12]} 14. b3 {[%emt 0:00:29]} Be5 {[%emt 0:00:10]} 15. Rb1 {[%emt 0:00:03]} Bc3 {[%emt 0:00:06]} 16. Ba3 {[%emt 0:00:29]} Kd8 {[%emt 0:00:28]} 17. Rfd1 {[%emt 0:00:18][%cal Bf1d1,Bd1d3,Bd3e3][%mdl 32]} Kc7 {[%emt 0:00:22]} 18. d4 {[%emt 0:00:06]} b5 {[%emt 0:00:03][%cal Bb7b5,Bb5b4][%mdl 32]} 19. Rd3 {[%emt 0:00:47]} b4 {[%emt 0:00:01]} 20. Bb2 {[%emt 0:01:11]} Bxb2 {[%emt 0:00:03]} 21. Rxb2 {[%emt 0:00:00]} Rhd8 {[%emt 0:01:08]} 22. c3 {[%emt 0:00:57]} Nf6 {[%emt 0:00:25]} 23. Rc2 {[%emt 0:05:00]} Rd6 {[%emt 0:00:12]} 24. Re3 {[%emt 0:01:17]} Rad8 {[%emt 0:01:00]} 25. Re5 {[%emt 0:00:04]} Nd5 {[%emt 0:00:38]} 26. c4 {[%emt 0:00:42]} f6 {[%emt 0:01:47]} 27. Rh5 {[%emt 0:00:21]} Nc3 {[%emt 0:00:01]} 28. Rxa5 {[%emt 0:01:44] Threatens to win with a3.} Kb6 {[%emt 0:00:10]} 29. Rh5 {[%emt 0:00:21]} Rxd4 {[%emt 0:00:03]} 30. Rxh7 {[%emt 0:00:08]} R4d7 {[%emt 0:00:39]} 31. h4 {[%emt 0:01:11]} Ra8 {[%emt 0:00:45]} 32. Bh3 {[%emt 0:00:03]} f5 {[%emt 0:00:08]} 33. g4 {[%emt 0:00:04]} fxg4 {[%emt 0:00:17]} 34. Bxg4 {[%emt 0:00:00]} Re7 {[%emt 0:00:03]} 35. Rh5 {[%emt 0:00:41]} e5 {[%emt 0:00:14]} 36. Rg5 {[%emt 0:01:28]} (36. Kg2 $11) 36... Rxa2 $17 {[%emt 0:00:06] 0x0.002037565faddp-1022s more active pieces. Black keeps a firm grip on the game.} 37. Rxa2 {[%emt 0:00:01]} Nxa2 {[%emt 0:00:01][%mdl 4096] Endgame KRB-KRN} 38. Kf1 {[%emt 0:00:27]} (38. Bd1 $17 {was worth a try.}) 38... Nc1 $1 $19 {[%emt 0:00:14]} 39. Bd1 {[%emt 0:00:02]} Kc5 $1 {[%emt 0:00:02]} 40. Ke1 {[%emt 0:00:19]} (40. f4 $142) 40... Nd3+ {[%emt 0:00:02]} 41. Ke2 {[%emt 0:00:01]} Kd4 {[%emt 0:00:11]} 42. Rg4+ {[%emt 0:00:06]} e4 {[%emt 0:00:19]} 43. f3 {[%emt 0:00:05]} Kc3 {[%emt 0:00:58] And now ...exf3+ would win.} 44. Rxe4 {[%emt 0:00:06]} (44. fxe4 $17 {is a better defense.} Nc5 45. Ke3 (45. Rg3+ Kb2 $17)) 44... Nc1+ $1 {[%emt 0:00:06]} 45. Ke1 {[%emt 0:00:20] [#]} Rd7 {[%emt 0:01:01] Hoping for ...Rd2.} 46. c5 {[%emt 0:00:02]} Nd3+ {[%emt 0:01:41]} 47. Ke2 $2 {[%emt 0:00:02] [#]} (47. Kf1 Nb2 48. Be2 (48. Re3+ $2 Rd3 $19)) 47... Nb2 $1 {[%emt 0:00:46]} ({Stronger than} 47... Nc1+ 48. Ke1 $19) 48. Re3+ {[%emt 0:00:29]} Rd3 {[%emt 0:00:01]} 49. Rxd3+ {[%emt 0:00:14]} Nxd3 {[%emt 0:00:00] KB-KN} 50. h5 $2 {[%emt 0:00:01]} (50. f4 Nc1+ 51. Kf2) 50... Nf4+ {[%emt 0:01:32]} (50... Nxc5 51. f4 $17) 51. Ke3 {[%emt 0:00:04]} Nxh5 {[%emt 0:00:27] aiming for ...Ng3.} 52. Ke4 {[%emt 0:00:27]} (52. f4 $19 Ng3 53. Bg4 Nf1+ 54. Kf2) 52... Kd2 {[%emt 0:00:11] Black mates.} 53. Ke5 {[%emt 0:00:01]} Kxd1 {[%emt 0:00:02]} 54. Kd6 {[%emt 0:00:00]} Kc2 {[%emt 0:00:04]} 55. Kxc6 {[%emt 0:00:01]} Kxb3 {[%emt 0:00:01]} 56. Kd6 {[%emt 0:00:44]} Nf6 {[%emt 0:00:05] Weighted Error Value: White=0.46/Black=0.03 (flawless)} 0-1

[Event "MCCT Oslo Esports Cup 2022"]
[Site "Oslo"]
[Date "2022.04.20"]
[Round "1.3"]
[White "Van Foreest, Jorden"]
[Black "Praggnanandhaa R"]
[Result "0-1"]
[ECO "E28"]
[WhiteElo "2714"]
[BlackElo "2624"]
[Annotator "TA"]
[PlyCount "68"]
[EventDate "2022.04.14"]
[EventType "tourn"]
[EventCountry "NOR"]
[SourceTitle "playchess.com"]
[Source "ChessBase"]
[SourceQuality "1"]
[TimeControl "1500+10"]

{[%evp 14,68,-2,0,0,-18,1,0,0,0,13,10,53,41,52,3,60,68,75,66,62,43,81,72,91,51,81,69,56,-72,-62,-71,-60,-51,-60,-283,-295,-254,-285,-613,-586,-655,-641,-685,-676,-824,-806,-760,-709,-944,-920,-871,-839,-899,-884,-852,-684]} 1. d4 {[%emt 0:10:00]} Nf6 {[%emt 0:10:00]} 2. c4 {[%emt 0:00:03]} e6 {[%emt 0:00:04]} 3. Nc3 {[%emt 0:00:08]} Bb4 {[%emt 0:00:04]} 4. e3 {[%emt 0:00:07]} O-O {[%emt 0:00:04]} 5. a3 {[%emt 0:00:06]} Bxc3+ {[%emt 0:00:11]} 6. bxc3 {[%emt 0:00:00]} b6 {[%emt 0:01:25]} 7. Bd3 {[%emt 0:00:12]} Bb7 {[%emt 0:00:01]} 8. f3 {[%emt 0:00:04]} c5 $1 {[%emt 0:00:07][%mdl 4] is more profitable than 8...d6 at the moment. E28: Nimzo-Indian: Sämisch: 5...0-0 6 e3.} 9. e4 {[%emt 0:00:44]} Ne8 {[%emt 0:00:11]} 10. Nh3 {[%emt 0:00:45]} Nc6 {[%emt 0:00:33] The position is equal.} 11. Be3 {[%emt 0:00:04] [#]} Qe7 $5 $146 {[%emt 0:02:42][%mdl 8] New and interesting.} ({Predecessor:} 11... Rc8 12. O-O Na5 13. d5 Ba6 14. Qe2 Nd6 15. e5 Ndxc4 16. Bg5 Qc7 17. Qe4 g6 18. Bf6 Nd6 19. exd6 Qxd6 20. Bxa6 exd5 21. Qe7 {1-0 (21) Caruana,F (2781)-Svane,R (2648) Chess.com INT 2022}) 12. O-O {[%emt 0:00:10]} e5 {[%emt 0:00:02][%cal Rc5d4]} 13. d5 {[%emt 0:00:29]} Na5 {[%emt 0:00:04]} 14. f4 {[%emt 0:00:01]} (14. Qe2 $14) 14... Nd6 {[%emt 0:01:03]} (14... f5 $11) 15. Qe2 $1 $14 {[%emt 0:02:51] fxe5 is the strong threat.} f6 {[%emt 0:02:36] [#]} 16. fxe5 $1 {[%emt 0:03:30]} fxe5 {[%emt 0:00:13]} 17. Bg5 {[%emt 0:00:14]} Rxf1+ {[%emt 0:00:16]} 18. Rxf1 {[%emt 0:00:00]} Qe8 {[%emt 0:00:02]} 19. Nf2 {[%emt 0:01:19]} Ba6 {[%emt 0:01:17][%cal Ra6c4]} 20. Ng4 {[%emt 0:00:02]} Bxc4 {[%emt 0:02:53]} 21. Bf6 {[%emt 0:02:14]} Bxd3 $17 {[%emt 0:01:45]} 22. Qxd3 {[%emt 0:00:00]} Nac4 $36 {[%emt 0:01:55][%mdl 2048] aiming for ...b5. Black has good play. Pair of Knights!} 23. Rf3 $1 {[%emt 0:03:44][%cal Of3g3]} Kh8 {[%emt 0:00:22]} 24. Bxg7+ {[%emt 0:02:01] [#] This costs White the game.} Kxg7 $19 {[%emt 0:00:01]} 25. Nf6 {[%emt 0:00:00] Prevents Qh5.} Qg6 {[%emt 0:00:19]} 26. h4 $2 {[%emt 0:00:29]} (26. Rg3 Kxf6 27. Rxg6+ hxg6 28. Qg3) 26... Kh8 {[%emt 0:00:19] Black is clearly winning.} 27. h5 {[%emt 0:00:06]} Qh6 {[%emt 0:00:01]} 28. Qe2 {[%emt 0:00:15]} Rf8 {[%emt 0:00:15]} 29. Ng4 {[%emt 0:00:08]} Qc1+ {[%emt 0:00:05]} 30. Kh2 {[%emt 0:00:02]} Rxf3 {[%emt 0:00:05]} 31. gxf3 {[%emt 0:00:01]} Qf4+ {[%emt 0:00:16]} 32. Kg2 {[%emt 0:00:06]} b5 {[%emt 0:00:08]} 33. h6 {[%emt 0:00:03]} Nf7 {[%emt 0:00:08]} 34. Qf2 {[%emt 0:00:26]} Qd2 {[%emt 0:00:07] Weighted Error Value: White=0.68/Black=0.10 (very precise)} 0-1

[Event "MCCT Oslo Esports Cup 2022"]
[Site "Oslo"]
[Date "2022.04.20"]
[Round "1.4"]
[White "Le, Quang Liem"]
[Black "Mamedyarov, Shakhriyar"]
[Result "1/2-1/2"]
[ECO "D38"]
[WhiteElo "2709"]
[BlackElo "2771"]
[Annotator "TA"]
[PlyCount "63"]
[EventDate "2022.04.14"]
[EventType "tourn"]
[EventCountry "NOR"]
[SourceTitle "playchess.com"]
[Source "ChessBase"]
[SourceQuality "1"]
[TimeControl "1500+10"]

{[%evp 13,63,-12,11,26,12,0,0,0,0,0,0,0,0,0,0,0,0,0,0,0,0,-20,35,17,25,29,18,30,37,54,55,10,11,16,9,31,30,32,27,0,0,0,0,0,0,0,0,0,0,0,0,0]} 1. d4 {[%emt 0:10:00]} Nf6 {[%emt 0:10:00]} 2. c4 {[%emt 0:00:04]} e6 {[%emt 0:00:02]} 3. Nf3 {[%emt 0:00:02]} d5 {[%emt 0:00:00]} 4. Nc3 {[%emt 0:00:01]} Bb4 {[%emt 0:00:02]} 5. Qa4+ {[%emt 0:00:02]} Nc6 {[%emt 0:00:01][%cal Bb8c6,Bc6e5,Be5f3][%mdl 32]} 6. a3 {[%emt 0:00:01]} Bxc3+ {[%emt 0:00:15]} 7. bxc3 {[%emt 0:00:00]} Bd7 {[%emt 0:00:12][%cal Oc6d4]} 8. cxd5 {[%emt 0:00:07] D38: Queen's Gambit Declined: Ragozin Defence (4 Nf3 Bb4).} exd5 {[%emt 0:00:02] [#]} 9. Bf4 $146 {[%emt 0:00:01]} ({Predecessor:} 9. Qc2 O-O 10. Bg5 h6 11. Bh4 Na5 12. Ne5 Be6 13. e3 c5 14. Bd3 c4 15. Bh7+ Kh8 {1-0 (50) Mamedyarov,S (2776)-Santos Latasa,J (2648) Germany 2022}) 9... O-O {[%emt 0:00:46]} 10. e3 {[%emt 0:00:06]} Ne5 {[%emt 0:00:23]} 11. Qb3 {[%emt 0:00:11]} Nxf3+ {[%emt 0:00:02]} 12. gxf3 {[%emt 0:00:00]} b6 {[%emt 0:00:03]} 13. Rg1 {[%emt 0:01:13]} Re8 {[%emt 0:00:08]} 14. Be2 {[%emt 0:00:19]} c6 {[%emt 0:00:42]} 15. Be5 {[%emt 0:00:39]} g6 {[%emt 0:00:01]} 16. a4 {[%emt 0:01:05]} Bf5 {[%emt 0:02:39]} 17. Kd2 {[%emt 0:00:29]} Rxe5 {[%emt 0:01:25]} 18. dxe5 $14 {[%emt 0:00:05]} Nd7 {[%emt 0:00:01][%cal Bf6d7,Bd7e5,Be5c4][%mdl 32]} 19. Qb4 $1 {[%emt 0:02:51]} Nxe5 {[%emt 0:00:18]} 20. Qf4 {[%emt 0:00:03][%csl LRe5,LRf5]} Nc4+ {[%emt 0:01:25]} 21. Ke1 {[%emt 0:00:04] [#] And now Qxf5 would win.} Qf6 {[%emt 0:00:30]} 22. Qd4 {[%emt 0:02:06]} (22. Rc1 $5 {[%cal Re3e4]} Nd6 23. h4 $14) 22... Qe7 {[%emt 0:03:40]} 23. e4 {[%emt 0:03:15]} Re8 $1 {[%emt 0:00:43]} 24. Bxc4 {[%emt 0:00:12]} dxc4 {[%emt 0:00:00]} 25. Rd1 {[%emt 0:00:24]} Qh4 {[%emt 0:00:29]} 26. Qd6 {[%emt 0:01:11]} (26. Qxc4 $2 Bxe4 27. Qe2 {[#]} Re7 $1 28. Rd8+ (28. fxe4 $2 Rxe4 29. Rg3 Rxe2+ 30. Kxe2 Qxa4 $19) 28... Kg7 $19) 26... Rxe4+ $1 {[%emt 0:00:07] The position is equal.} 27. fxe4 {[%emt 0:01:42] The board is on fire.} Qxe4+ {[%emt 0:00:00]} 28. Kd2 {[%emt 0:00:09]} Qc2+ {[%emt 0:00:02]} 29. Ke3 $1 {[%emt 0:00:05]} Qe4+ $1 {[%emt 0:00:01]} 30. Kd2 {[%emt 0:00:01]} Qc2+ {[%emt 0:00:01]} 31. Ke1 {[%emt 0:00:04]} Qe4+ {[%emt 0:00:01]} 32. Kd2 {[%emt 0:00:01] Weighted Error Value: White=0.04 (flawless) /Black=0.06 (flawless)} 1/2-1/2